fUSD/lending_fUSD_20240409
["ID","MTS","AMOUNT","RATE_DAILY","PERIOD"]
[322015109,1712687446309,-482.80060139,0.00019999,2]
[322015111,1712687446318,-20168.76501266,0.0002,2]
[322015113,1712687446328,-624.32519161,0.0002,2]
[322015115,1712687446338,-500.0,0.0002,2]
[322015117,1712687446347,-500.0,0.0002,2]
[322015119,1712687446357,-500.0,0.0002,2]
[322015121,1712687446366,-500.0,0.0002,2]
[322015123,1712687446375,-517.33,0.0002,2]
[322015125,1712687446385,-866.73,0.0002,2]
[322015127,1712687446394,-500.0,0.0002,2]
[322015129,1712687446403,-500.0,0.0002,2]
[322015130,1712687446413,-500.0,0.0002,2]
[322015131,1712687446422,-500.0,0.0002,2]
[322015132,1712687446431,-500.0,0.0002,2]
[322015133,1712687446440,-500.0,0.0002,2]
[322015134,1712687446450,-500.0,0.0002,2]
[322015135,1712687446459,-500.0,0.0002,2]
[322015136,1712687446469,-500.0,0.0002,2]
[322015137,1712687446478,-500.0,0.0002,2]
[322015138,1712687446487,-500.0,0.0002,2]
[322015139,1712687446496,-500.0,0.0002,2]
[322015140,1712687446505,-500.0,0.0002,2]
[322015141,1712687446517,-500.0,0.0002,2]
[322015142,1712687446527,-500.0,0.0002,2]
[322015143,1712687446536,-500.0,0.0002,2]
[322015144,1712687446545,-500.0,0.0002,2]
[322015145,1712687446555,-500.0,0.0002,2]
[322015146,1712687446565,-500.0,0.0002,2]
[322015147,1712687446579,-500.0,0.0002,2]
[322015149,1712687446589,-500.0,0.0002,2]
[322015150,1712687446598,-500.0,0.0002,2]
[322015151,1712687446607,-500.0,0.0002,2]
[322015152,1712687446618,-500.0,0.0002,2]
[322015153,1712687446628,-500.0,0.0002,2]
[322015154,1712687446637,-500.0,0.0002,2]
[322015155,1712687446647,-500.0,0.0002,2]
[322015156,1712687446656,-500.0,0.0002,2]
[322015157,1712687446667,-500.0,0.0002,2]
[322015158,1712687446677,-500.0,0.0002,2]
[322015159,1712687446686,-500.0,0.0002,2]
[322015160,1712687446697,-500.0,0.0002,2]
[322015161,1712687446706,-500.0,0.0002,2]
[322015162,1712687446717,-500.0,0.0002,2]
[322015163,1712687446726,-500.0,0.0002,2]
[322015164,1712687446735,-571.26,0.0002,2]
[322015165,1712687446745,-500.0,0.0002,2]
[322015166,1712687446755,-500.0,0.0002,2]
[322015167,1712687446767,-161.72347367,0.0002,2]
[322015168,1712687446777,-500.0,0.0002,2]
[322015169,1712687446786,-500.0,0.0002,2]
[322015170,1712687446796,-500.0,0.0002,2]
[322015171,1712687446807,-500.0,0.0002,2]
[322015172,1712687446816,-322.31705592,0.0002,2]
[322015173,1712687446825,-150.0,0.0002,2]
[322015174,1712687446834,-500.0,0.0002,2]
[322015175,1712687446844,-500.0,0.0002,2]
[322015176,1712687446854,-500.0,0.0002,2]
[322015177,1712687446864,-500.0,0.0002,2]
[322015178,1712687446874,-500.0,0.0002,2]
[322015179,1712687446884,-500.0,0.0002,2]
[322015180,1712687446894,-500.0,0.0002,2]
[322015181,1712687446904,-500.0,0.0002,2]
[322015182,1712687446914,-751.36,0.0002,2]
[322015183,1712687446924,-2553.0,0.0002,2]
[322015184,1712687446934,-2553.0,0.0002,2]
[322015185,1712687446944,-2553.0,0.0002,2]
[322015186,1712687446954,-2553.0,0.0002,2]
[322015187,1712687446964,-2553.0,0.0002,2]
[322015188,1712687446974,-2553.0,0.0002,2]
[322015189,1712687446984,-2553.0,0.0002,2]
[322015190,1712687446995,-2553.0,0.0002,2]
[322015191,1712687447006,-2553.0,0.0002,2]
[322015192,1712687447017,-2553.0,0.0002,2]
[322015193,1712687447028,-500.0,0.0002,2]
[322015194,1712687447038,-503.40728884,0.0002,2]
[322015195,1712687447048,-500.0,0.0002,2]
[322015196,1712687447060,-500.0,0.0002,2]
[322015197,1712687447070,-500.0,0.0002,2]
[322015198,1712687447080,-500.0,0.0002,2]
[322015199,1712687447089,-592.3,0.0002,2]
[322015200,1712687447098,-500.0,0.0002,2]
[322015201,1712687447107,-500.0,0.0002,2]
[322015202,1712687447117,-500.0,0.0002,2]
[322015203,1712687447127,-500.0,0.0002,2]
[322015204,1712687447138,-500.0,0.0002,2]
[322015205,1712687447148,-500.0,0.0002,2]
[322015206,1712687447158,-500.0,0.0002,2]
[322015207,1712687447169,-500.0,0.0002,2]
[322015208,1712687447179,-500.0,0.0002,2]
[322015209,1712687447189,-500.0,0.0002,2]
[322015210,1712687447199,-231.46692446,0.0002,2]
[322015211,1712687447210,-500.0,0.0002,2]
[322015212,1712687447219,-500.0,0.0002,2]
[322015213,1712687447228,-500.0,0.0002,2]
[322015214,1712687447238,-500.0,0.0002,2]
[322015215,1712687447248,-500.0,0.0002,2]
[322015216,1712687447258,-500.0,0.0002,2]
[322015217,1712687447269,-900.71,0.0002,2]
[322015218,1712687447283,-967.48,0.0002,2]
[322015219,1712687447294,-500.0,0.0002,2]
[322015220,1712687447305,-500.0,0.0002,2]
[322015221,1712687447314,-500.0,0.0002,2]
[322015222,1712687447324,-500.0,0.0002,2]
[322015223,1712687447334,-2338.52,0.0002,2]
[322015224,1712687447344,-500.0,0.0002,2]
[322015225,1712687447354,-500.0,0.0002,2]
[322015226,1712687447365,-581.2,0.0002,2]
[322015227,1712687447375,-500.0,0.0002,2]
[322015228,1712687447385,-500.0,0.0002,2]
[322015229,1712687447395,-1413.04,0.0002,2]
[322015230,1712687447405,-848.02,0.0002,2]
[322015231,1712687447414,-2390.44,0.0002,2]
[322015232,1712687447425,-500.0,0.0002,2]
[322015233,1712687447436,-500.0,0.0002,2]
[322015234,1712687447447,-500.0,0.0002,2]
[322015235,1712687447458,-1107.43,0.0002,2]
[322015236,1712687447469,-500.0,0.0002,2]
[322015237,1712687447479,-9038.22,0.0002,2]
[322015238,1712687447489,-500.0,0.0002,2]
[322015239,1712687447499,-552.83,0.0002,2]
[322015240,1712687447509,-500.0,0.0002,2]
[322015241,1712687447519,-500.0,0.0002,2]
[322015242,1712687447529,-500.0,0.0002,2]
[322015243,1712687447538,-663.45,0.0002,2]
[322015244,1712687447547,-1271.78,0.0002,2]
[322015245,1712687447560,-1308.48,0.0002,2]
[322015246,1712687447572,-651.41,0.0002,2]
[322015247,1712687447582,-500.0,0.0002,2]
[322015248,1712687447593,-1398.63,0.0002,2]
[322015249,1712687447604,-500.0,0.0002,2]
[322015250,1712687447615,-691.72,0.0002,2]
[322015251,1712687447625,-596.04,0.0002,2]
[322015252,1712687447636,-749.96,0.0002,2]
[322015253,1712687447648,-500.0,0.0002,2]
[322015254,1712687447659,-500.0,0.0002,2]
[322015255,1712687447669,-576.33,0.0002,2]
[322015256,1712687447678,-500.0,0.0002,2]
[322015257,1712687447688,-612.43,0.0002,2]
[322015258,1712687447697,-531.62,0.0002,2]
[322015259,1712687447708,-983.15,0.0002,2]
[322015260,1712687447718,-500.0,0.0002,2]
[322015261,1712687447728,-1408.8,0.0002,2]
[322015262,1712687447738,-500.0,0.0002,2]
[322015263,1712687447749,-579.9,0.0002,2]
[322015264,1712687447758,-253.80235047,0.0002,2]
[322015265,1712687447768,-1037.26,0.0002,2]
[322015266,1712687447777,-500.0,0.0002,2]
[322015267,1712687447787,-561.4,0.0002,2]
[322015268,1712687447796,-500.0,0.0002,2]
[322015269,1712687447805,-500.0,0.0002,2]
[322015270,1712687447814,-500.0,0.0002,2]
[322015271,1712687447824,-517.37,0.0002,2]
[322015272,1712687447833,-993.54,0.0002,2]
[322015273,1712687447842,-662.75,0.0002,2]
[322015274,1712687447851,-500.0,0.0002,2]
[322015275,1712687447861,-1049.42,0.0002,2]
[322015276,1712687447870,-500.0,0.0002,2]
[322015277,1712687447879,-500.0,0.0002,2]
[322015278,1712687447889,-606.82,0.0002,2]
[322015279,1712687447898,-500.0,0.0002,2]
[322015280,1712687447907,-581.35,0.0002,2]
[322015281,1712687447916,-2158.3,0.0002,2]
[322015282,1712687447925,-500.0,0.0002,2]
[322015283,1712687447935,-500.0,0.0002,2]
[322015284,1712687447944,-500.0,0.0002,2]
[322015285,1712687447954,-500.0,0.0002,2]
[322015286,1712687447963,-1466.88,0.0002,2]
[322015287,1712687447972,-500.0,0.0002,2]
[322015288,1712687447981,-2724.94,0.0002,2]
[322015289,1712687447990,-851.21,0.0002,2]
[322015290,1712687447999,-500.0,0.0002,2]
[322015291,1712687448009,-500.0,0.0002,2]
[322015292,1712687448018,-736.8,0.0002,2]
[322015293,1712687448027,-628.7611305,0.0002,2]
[322015294,1712687448036,-596.39,0.0002,2]
[322015295,1712687448045,-704.18,0.0002,2]
[322015296,1712687448055,-500.0,0.0002,2]
[322015297,1712687448064,-500.0,0.0002,2]
[322015298,1712687448073,-693.26809633,0.0002,2]
[322015299,1712687448446,-4557.92190367,0.0002,2]
[322015300,1712687448458,-501.63,0.0002,2]
[322015301,1712687448470,-500.0,0.0002,2]
[322015302,1712687448483,-1648.75,0.0002,2]
[322015303,1712687448494,-770.37,0.0002,2]
[322015304,1712687448506,-568.72,0.0002,2]
[322015305,1712687448518,-500.0,0.0002,2]
[322015306,1712687448528,-1453.16,0.0002,2]
[322015307,1712687448540,-1425.93,0.0002,2]
[322015308,1712687448551,-1557.32,0.0002,2]
[322015309,1712687448563,-2340.92,0.0002,2]
[322015310,1712687448577,-519.69,0.0002,2]
[322015311,1712687448588,-1459.26,0.0002,2]
[322015312,1712687448599,-3149.37,0.0002,2]
[322015313,1712687448610,-500.0,0.0002,2]
[322015314,1712687448621,-500.0,0.0002,2]
[322015315,1712687448630,-500.0,0.0002,2]
[322015316,1712687448640,-529.18,0.0002,2]
[322015317,1712687448650,-838.19,0.0002,2]
[322015318,1712687448660,-866.71,0.0002,2]
[322015319,1712687448669,-500.0,0.0002,2]
[322015320,1712687448679,-706.55,0.0002,2]
[322015321,1712687448689,-6351.03,0.0002,2]
[322015322,1712687448700,-500.0,0.0002,2]
[322015323,1712687448710,-571.65,0.0002,2]
[322015324,1712687448720,-500.0,0.0002,2]
[322015325,1712687448730,-500.0,0.0002,2]
[322015326,1712687448740,-1254.69,0.0002,2]
[322015327,1712687448752,-500.0,0.0002,2]
[322015328,1712687448763,-816.55,0.0002,2]
[322015329,1712687448773,-523.23,0.0002,2]
[322015330,1712687448782,-500.0,0.0002,2]
[322015331,1712687448792,-500.0,0.0002,2]
[322015332,1712687448802,-740.6,0.0002,2]
[322015333,1712687448812,-1506.67,0.0002,2]
[322015334,1712687448822,-924.41,0.0002,2]
[322015335,1712687448833,-548.87,0.0002,2]
[322015336,1712687448843,-902.98,0.0002,2]
[322015337,1712687448856,-883.25,0.0002,2]
[322015338,1712687448867,-500.0,0.0002,2]
[322015339,1712687448878,-500.0,0.0002,2]
[322015340,1712687448889,-521.13,0.0002,2]
[322015341,1712687448900,-578.21,0.0002,2]
[322015342,1712687448911,-638.76,0.0002,2]
[322015343,1712687448922,-500.0,0.0002,2]
[322015344,1712687448932,-500.0,0.0002,2]
[322015345,1712687448943,-500.0,0.0002,2]
[322015346,1712687448954,-1113.68,0.0002,2]
[322015347,1712687448966,-500.0,0.0002,2]
[322015348,1712687448977,-1454.91,0.0002,2]
[322015349,1712687448988,-500.0,0.0002,2]
[322015350,1712687448998,-500.0,0.0002,2]
[322015351,1712687449010,-818.77,0.0002,2]
[322015352,1712687449021,-500.0,0.0002,2]
[322015353,1712687449032,-870.77,0.0002,2]
[322015354,1712687449043,-594.45,0.0002,2]
[322015355,1712687449055,-630.88,0.0002,2]
[322015356,1712687449066,-500.0,0.0002,2]
[322015357,1712687449078,-1318.04,0.0002,2]
[322015358,1712687449089,-248.636703,0.0002,2]
[322015359,1712687449100,-2059.55,0.0002,2]
[322015360,1712687449111,-1412.05,0.0002,2]
[322015361,1712687449122,-500.0,0.0002,2]
[322015362,1712687449132,-221.83669334,0.0002004,2]
[322015363,1712687449144,-162.15,0.00020074,2]
[322015364,1712687449155,-650.49195504,0.00020076,2]
[322015365,1712687449167,-200.0,0.00020103,2]
[322015366,1712687449179,-155.97634313,0.00020143,2]
[322015367,1712687449190,-2037.50613639,0.00020171,2]
[322015368,1712687449202,-179.60290379,0.00020171,2]
[322015369,1712687449213,-170.75857642,0.00020173,2]
[322015370,1712687449225,-2037.50613631,0.00020237,2]
[322015371,1712687449237,-221.83669334,0.00020255,2]
[322015372,1712687449248,-560.0,0.00020271,2]
[322015373,1712687449260,-500.0,0.00020273,2]
[322015374,1712687449271,-500.0,0.00020273,2]
[322015375,1712687449282,-500.0,0.00020273,2]
[322015376,1712687449293,-500.0,0.00020273,2]
[322015377,1712687449304,-517.33,0.00020273,2]
[322015378,1712687449315,-866.73,0.00020273,2]
[322015379,1712687449327,-313.82170696,0.00020273,2]
[322015380,1712687449338,-500.0,0.00020273,2]
[322015381,1712687449349,-500.0,0.00020273,2]
[322015382,1712687449360,-500.0,0.00020273,2]
[322015383,1712687449372,-500.0,0.00020273,2]
[322015384,1712687449383,-500.0,0.00020273,2]
[322015385,1712687449395,-500.0,0.00020273,2]
[322015386,1712687449407,-500.0,0.00020273,2]
[322015387,1712687449417,-500.0,0.00020273,2]
[322015388,1712687449427,-500.0,0.00020273,2]
[322015389,1712687449438,-500.0,0.00020273,2]
[322015390,1712687449450,-500.0,0.00020273,2]
[322015391,1712687449463,-500.0,0.00020273,2]
[322015392,1712687449476,-500.0,0.00020273,2]
[322015393,1712687449487,-500.0,0.00020273,2]
[322015394,1712687449499,-500.0,0.00020273,2]
[322015395,1712687449512,-500.0,0.00020273,2]
[322015396,1712687449524,-500.0,0.00020273,2]
[322015397,1712687449536,-500.0,0.00020273,2]
[322015398,1712687449547,-500.0,0.00020273,2]
[322015399,1712687449561,-500.0,0.00020273,2]
[322015400,1712687449577,-500.0,0.00020273,2]
[322015401,1712687449591,-500.0,0.00020273,2]
[322015402,1712687449602,-500.0,0.00020273,2]
[322015403,1712687449616,-500.0,0.00020273,2]
[322015404,1712687449628,-500.0,0.00020273,2]
[322015405,1712687449642,-390.94658618,0.00020273,2]
[322015406,1712687449656,-500.0,0.00020273,2]
[322015407,1712687449669,-500.0,0.00020273,2]
[322015408,1712687449681,-500.0,0.00020273,2]
[322015409,1712687449692,-500.0,0.00020273,2]
[322015410,1712687449702,-550.58575006,0.00020273,2]
[322015411,1712687449714,-500.0,0.00020273,2]
[322015412,1712687449725,-500.0,0.00020273,2]
[322015413,1712687449737,-500.0,0.00020273,2]
[322015414,1712687449749,-571.26,0.00020273,2]
[322015415,1712687449763,-500.0,0.00020273,2]
[322015416,1712687449773,-500.0,0.00020273,2]
[322015417,1712687449784,-500.0,0.00020273,2]
[322015418,1712687449796,-500.0,0.00020273,2]
[322015419,1712687449807,-500.0,0.00020273,2]
[322015420,1712687449818,-150.0,0.00020273,2]
[322015421,1712687449832,-500.0,0.00020273,2]
[322015422,1712687449845,-500.0,0.00020273,2]
[322015423,1712687449858,-588.31871048,0.00020273,2]
[322015424,1712687449869,-500.0,0.00020273,2]
[322015425,1712687449881,-500.0,0.00020273,2]
[322015426,1712687449892,-500.0,0.00020273,2]
[322015427,1712687449904,-500.0,0.00020273,2]
[322015428,1712687449916,-500.0,0.00020273,2]
[322015429,1712687449927,-751.36,0.00020273,2]
[322015430,1712687449940,-446.80683993,0.00020273,2]
[322015431,1712687449952,-500.0,0.00020273,2]
[322015432,1712687449964,-500.0,0.00020273,2]
[322015433,1712687449977,-500.0,0.00020273,2]
[322015434,1712687449989,-500.0,0.00020273,2]
[322015435,1712687450000,-592.3,0.00020273,2]
[322015436,1712687450011,-500.0,0.00020273,2]
[322015437,1712687450023,-500.0,0.00020273,2]
[322015438,1712687450033,-500.0,0.00020273,2]
[322015439,1712687450044,-500.0,0.00020273,2]
[322015440,1712687450056,-500.0,0.00020273,2]
[322015441,1712687450067,-500.0,0.00020273,2]
[322015442,1712687450077,-500.0,0.00020273,2]
[322015443,1712687450089,-500.0,0.00020273,2]
[322015444,1712687450101,-380.65813765,0.00020273,2]
[322015445,1712687450112,-500.0,0.00020273,2]
[322015446,1712687450124,-500.0,0.00020273,2]
[322015447,1712687450135,-500.0,0.00020273,2]
[322015448,1712687450147,-500.0,0.00020273,2]
[322015449,1712687450158,-500.0,0.00020273,2]
[322015450,1712687450168,-500.0,0.00020273,2]
[322015451,1712687450179,-900.71,0.00020273,2]
[322015452,1712687450190,-500.0,0.00020273,2]
[322015453,1712687450201,-967.48,0.00020273,2]
[322015454,1712687450211,-500.0,0.00020273,2]
[322015455,1712687450221,-500.0,0.00020273,2]
[322015456,1712687450232,-500.0,0.00020273,2]
[322015457,1712687450244,-500.0,0.00020273,2]
[322015458,1712687450255,-2338.52,0.00020273,2]
[322015459,1712687450265,-500.0,0.00020273,2]
[322015460,1712687450276,-500.0,0.00020273,2]
[322015461,1712687450287,-581.2,0.00020273,2]
[322015462,1712687450298,-500.0,0.00020273,2]
[322015463,1712687450309,-500.0,0.00020273,2]
[322015464,1712687450320,-1413.04,0.00020273,2]
[322015465,1712687450332,-848.02,0.00020273,2]
[322015466,1712687450342,-2390.44,0.00020273,2]
[322015467,1712687450353,-500.0,0.00020273,2]
[322015468,1712687450364,-500.0,0.00020273,2]
[322015469,1712687450375,-1107.43,0.00020273,2]
[322015470,1712687450387,-500.0,0.00020273,2]
[322015471,1712687450398,-500.0,0.00020273,2]
[322015472,1712687450409,-9038.22,0.00020273,2]
[322015473,1712687450421,-500.0,0.00020273,2]
[322015474,1712687450432,-552.83,0.00020273,2]
[322015475,1712687450444,-364.92984731,0.00020273,2]
[322015476,1712687450460,-500.0,0.00020273,2]
[322015477,1712687450472,-500.0,0.00020273,2]
[322015478,1712687450483,-663.45,0.00020273,2]
[322015479,1712687450495,-1271.78,0.00020273,2]
[322015480,1712687450507,-1308.48,0.00020273,2]
[322015481,1712687450519,-651.41,0.00020273,2]
[322015482,1712687450531,-500.0,0.00020273,2]
[322015483,1712687450542,-1398.63,0.00020273,2]
[322015484,1712687450554,-500.0,0.00020273,2]
[322015485,1712687450566,-691.72,0.00020273,2]
[322015486,1712687450583,-596.04,0.00020273,2]
[322015487,1712687450594,-500.0,0.00020273,2]
[322015488,1712687450605,-749.96,0.00020273,2]
[322015489,1712687450618,-500.0,0.00020273,2]
[322015490,1712687450630,-576.33,0.00020273,2]
[322015491,1712687450641,-500.0,0.00020273,2]
[322015492,1712687450653,-612.43,0.00020273,2]
[322015493,1712687450665,-531.62,0.00020273,2]
[322015494,1712687450676,-983.15,0.00020273,2]
[322015495,1712687450688,-500.0,0.00020273,2]
[322015496,1712687450699,-1408.8,0.00020273,2]
[322015497,1712687450710,-500.0,0.00020273,2]
[322015498,1712687450722,-579.9,0.00020273,2]
[322015499,1712687450734,-1037.26,0.00020273,2]
[322015500,1712687450747,-500.0,0.00020273,2]
[322015501,1712687450757,-561.4,0.00020273,2]
[322015502,1712687450769,-500.0,0.00020273,2]
[322015503,1712687450779,-500.0,0.00020273,2]
[322015504,1712687450790,-500.0,0.00020273,2]
[322015505,1712687450800,-517.37,0.00020273,2]
[322015506,1712687450812,-993.54,0.00020273,2]
[322015507,1712687450823,-662.75,0.00020273,2]
[322015508,1712687450834,-500.0,0.00020273,2]
[322015509,1712687450844,-1049.42,0.00020273,2]
[322015510,1712687450856,-500.0,0.00020273,2]
[322015511,1712687450867,-500.0,0.00020273,2]
[322015512,1712687450879,-606.82,0.00020273,2]
[322015513,1712687450888,-500.0,0.00020273,2]
[322015514,1712687450900,-581.35,0.00020273,2]
[322015515,1712687450913,-2158.3,0.00020273,2]
[322015516,1712687450924,-500.0,0.00020273,2]
[322015517,1712687450935,-500.0,0.00020273,2]
[322015518,1712687450947,-500.0,0.00020273,2]
[322015519,1712687450958,-500.0,0.00020273,2]
[322015520,1712687450969,-1466.88,0.00020273,2]
[322015521,1712687450981,-500.0,0.00020273,2]
[322015522,1712687450993,-2724.94,0.00020273,2]
[322015523,1712687451007,-500.0,0.00020273,2]
[322015524,1712687451019,-851.21,0.00020273,2]
[322015525,1712687451031,-500.0,0.00020273,2]
[322015526,1712687451043,-736.8,0.00020273,2]
[322015527,1712687451057,-596.39,0.00020273,2]
[322015528,1712687451069,-704.18,0.00020273,2]
[322015529,1712687451080,-500.0,0.00020273,2]
[322015530,1712687451090,-500.0,0.00020273,2]
[322015531,1712687451103,-5251.19,0.00020273,2]
[322015532,1712687451115,-501.63,0.00020273,2]
[322015533,1712687451126,-500.0,0.00020273,2]
[322015534,1712687451137,-1648.75,0.00020273,2]
[322015535,1712687451148,-770.37,0.00020273,2]
[322015536,1712687451159,-568.72,0.00020273,2]
[322015537,1712687451172,-500.0,0.00020273,2]
[322015538,1712687451184,-1453.16,0.00020273,2]
[322015539,1712687451196,-1425.93,0.00020273,2]
[322015540,1712687451208,-1557.32,0.00020273,2]
[322015541,1712687451220,-2340.92,0.00020273,2]
[322015542,1712687451232,-519.69,0.00020273,2]
[322015543,1712687451243,-1459.26,0.00020273,2]
[322015544,1712687451254,-3149.37,0.00020273,2]
[322015545,1712687451266,-500.0,0.00020273,2]
[322015546,1712687451280,-500.0,0.00020273,2]
[322015547,1712687451292,-500.0,0.00020273,2]
[322015548,1712687451305,-529.18,0.00020273,2]
[322015549,1712687451318,-838.19,0.00020273,2]
[322015550,1712687451330,-866.71,0.00020273,2]
[322015551,1712687451341,-500.0,0.00020273,2]
[322015552,1712687451353,-706.55,0.00020273,2]
[322015553,1712687451364,-6351.03,0.00020273,2]
[322015554,1712687451375,-500.0,0.00020273,2]
[322015555,1712687451387,-571.65,0.00020273,2]
[322015556,1712687451398,-500.0,0.00020273,2]
[322015557,1712687451409,-500.0,0.00020273,2]
[322015558,1712687451420,-1254.69,0.00020273,2]
[322015559,1712687451431,-500.0,0.00020273,2]
[322015560,1712687451443,-816.55,0.00020273,2]
[322015561,1712687451456,-523.23,0.00020273,2]
[322015562,1712687451468,-500.0,0.00020273,2]
[322015563,1712687451478,-500.0,0.00020273,2]
[322015564,1712687451489,-740.6,0.00020273,2]
[322015565,1712687451500,-924.41,0.00020273,2]
[322015566,1712687451510,-1506.67,0.00020273,2]
[322015567,1712687451520,-548.87,0.00020273,2]
[322015568,1712687451529,-902.98,0.00020273,2]
[322015569,1712687451539,-883.25,0.00020273,2]
[322015570,1712687451549,-500.0,0.00020273,2]
[322015571,1712687451562,-500.0,0.00020273,2]
[322015572,1712687451574,-521.13,0.00020273,2]
[322015573,1712687451585,-578.21,0.00020273,2]
[322015574,1712687451594,-638.76,0.00020273,2]
[322015575,1712687451604,-500.0,0.00020273,2]
[322015576,1712687451614,-500.0,0.00020273,2]
[322015577,1712687451624,-500.0,0.00020273,2]
[322015578,1712687451634,-1113.68,0.00020273,2]
[322015579,1712687451644,-500.0,0.00020273,2]
[322015580,1712687451655,-1454.91,0.00020273,2]
[322015581,1712687451664,-500.0,0.00020273,2]
[322015582,1712687451674,-500.0,0.00020273,2]
[322015583,1712687451684,-818.77,0.00020273,2]
[322015584,1712687451694,-354.941,0.00020273,2]
[322015585,1712687451703,-870.77,0.00020273,2]
[322015586,1712687451713,-594.45,0.00020273,2]
[322015587,1712687451723,-630.88,0.00020273,2]
[322015588,1712687451733,-500.0,0.00020273,2]
[322015589,1712687452291,-1318.04,0.00020273,2]
[322015590,1712687452310,-2059.55,0.00020273,2]
[322015591,1712687452319,-1412.05,0.00020273,2]
[322015592,1712687452328,-500.0,0.00020273,2]
[322015593,1712687452337,-150.0,0.00020274,2]
[322015594,1712687452346,-150.0,0.00020276,2]
[322015595,1712687452355,-2037.50613631,0.00020304,2]
[322015596,1712687452364,-150.0,0.00020337,2]
[322015597,1712687452373,-650.49195504,0.00020351,2]
[322015598,1712687452382,-2037.50613631,0.0002037,2]
[322015599,1712687452392,-485.11,0.00020396,2]
[322015600,1712687452401,-2037.50613631,0.00020436,2]
[322015601,1712687452411,-221.83669334,0.0002047,2]
[322015602,1712687452422,-606.0,0.00020489,2]
[322015603,1712687452431,-214.0,0.00020489,2]
[322015604,1712687452445,-354.0,0.00020489,2]
[322015605,1712687452455,-162.262,0.00020489,2]
[322015606,1712687452466,-630.806,0.00020489,2]
[322015607,1712687452476,-155.97634313,0.00020499,2]
[322015608,1712687452485,-150.0,0.000205,2]
[322015609,1712687452494,-2037.50613631,0.00020502,2]
[322015610,1712687452504,-655.63,0.00020503,2]
[322015611,1712687452514,-265.41538966,0.00020545,2]
[322015612,1712687452525,-155.0,0.00020545,2]
[322015613,1712687452535,-166.16697027,0.00020545,2]
[322015614,1712687452549,-155.0,0.00020545,2]
[322015615,1712687452563,-156.29477005,0.00020546,2]
[322015616,1712687452576,-342.8148006,0.00020546,2]
[322015617,1712687452589,-160.1828942,0.00020546,2]
[322015618,1712687452601,-549.0,0.00020547,2]
[322015619,1712687452613,-1004.0,0.00020547,2]